bitfinex-derivatives/quotes_ETHF0:USTF0_20250927
["timestamp","ask_amount","ask_price","bid_price","bid_amount"]
[1758987173601,1.73287017,4012.6,4012.5,1.21784]
[1758987176598,0.7539,4012.0,4011.9,3.9908]
[1758987176798,0.7539,4012.0,4011.9,4.2155]
[1758987177103,0.7539,4012.0,4011.9,4.4257]
[1758987180396,0.4212,4012.0,4011.9,4.4257]
[1758987180601,0.2038,4012.3,4012.2,1.21787]
[1758987180798,0.00248271,4012.6,4012.5,1.34034]
[1758987181001,0.50961988,4012.6,4012.5,1.59234]
[1758987182004,0.00248271,4012.6,4012.5,1.59234]
[1758987183505,0.00248271,4012.6,4012.5,3.38660008]
[1758987186907,0.98475,4013.4,4013.3,0.88315]
[1758987187107,2.45850659,4013.4,4013.3,1.21775]
[1758987187908,2.4615913,4013.4,4013.3,1.21775]
[1758987190319,0.5094413,4013.4,4013.3,1.21775]
[1758987190513,0.00308471,4013.4,4013.3,1.21775]
[1758987192705,0.00308471,4013.4,4013.3,1.46975]
[1758987194213,0.66426,4014.1,4014.0,1.31857]
[1758987194402,1.22036766,4014.1,4014.0,1.31857]
[1758987195105,1.55536766,4014.1,4014.0,1.32039656]
[1758987195313,1.5576766,4014.1,4014.0,1.32039656]
[1758987196016,1.7756766,4014.1,4014.0,0.87222656]
[1758987196215,1.7756766,4014.1,4014.0,0.74422656]
[1758987198111,0.5584166,4014.1,4014.0,1.32039656]
[1758987198311,0.55340894,4014.1,4014.0,1.32039656]
[1758987198511,0.00230894,4014.1,4014.0,1.32039656]
[1758987204622,0.00230894,4014.1,4014.0,1.57239656]
[1758987207217,0.44807,4014.9,4014.8,0.44807]
[1758987207421,1.16504284,4014.9,4014.8,1.21608]
[1758987207616,1.47664284,4014.9,4014.8,1.21608]
[1758987208017,1.68124284,4014.9,4014.8,0.768]
[1758987208218,1.68416292,4014.9,4014.8,1.21608]
[1758987211124,1.23609292,4014.9,4014.8,4.42388]
[1758987211322,0.92449292,4014.9,4014.8,4.42388]
[1758987211523,1.37256292,4014.9,4014.8,4.42388]
[1758987212025,0.50909292,4014.9,4014.8,4.42388]
[1758987213225,0.00292008,4014.9,4014.8,4.42388]
[1758987214534,0.00292008,4014.9,4014.8,4.67588]
[1758987214826,3.4186,4015.7,4015.6,1.21599]
[1758987215030,6.51482697,4015.7,4015.6,1.21599]
[1758987215228,7.27441697,4015.7,4015.6,1.21599]
[1758987215528,4.27121697,4015.7,4015.6,1.21599]
[1758987215726,3.30897992,4015.7,4015.6,1.21599]
[1758987215934,0.71897992,4015.7,4015.6,1.21599]
[1758987217831,1.16695992,4015.7,4015.6,1.21599]
[1758987219135,0.71868439,4015.7,4015.6,1.21599]
[1758987220325,1.16666439,4015.7,4015.6,1.21599]
[1758987223731,0.50788439,4015.7,4015.6,2.65235647]
[1758987223936,3.2078,4016.2,4016.1,0.88354]
[1758987224131,3.2078,4016.2,4016.1,1.46794]
[1758987224730,0.65868,4016.6,4016.5,1.34569]
[1758987224937,0.66047574,4016.6,4016.5,1.59769]
[1758987225232,0.21259574,4016.6,4016.5,1.59769]
[1758987225435,0.00179574,4016.6,4016.5,1.59769]
[1758987225939,0.00179574,4016.6,4016.5,3.03405647]
[1758987229646,0.21259574,4016.6,4016.5,1.59769]
[1758987229837,0.52419574,4016.6,4016.5,1.59769]
[1758987230034,1.17667574,4016.6,4016.5,1.59769]
[1758987230235,0.00179574,4016.6,4016.5,1.59769]
[1758987233844,0.76659574,4016.6,4016.5,1.59769]
[1758987234038,2.65084221,4016.6,4016.5,0.99649]
[1758987234238,2.65084221,4016.6,4016.5,1.24849]
[1758987235135,0.2192,4016.2,4016.1,3.2078]
[1758987235339,0.7594,4016.2,4016.1,4.33024]
[1758987235742,0.7594,4016.2,4016.1,4.67054]
[1758987236245,1.20733,4016.2,4016.1,4.67054]
[1758987236536,0.7594,4016.2,4016.1,4.67054]
[1758987238043,1.20733,4016.2,4016.1,4.41854]
[1758987238246,1.20733,4016.2,4016.1,4.67054]
[1758987239953,0.7594,4016.2,4016.1,4.67054]
[1758987240251,0.2054,4016.2,4016.1,4.67054]
[1758987240643,0.00179574,4016.6,4016.5,1.33449]
[1758987240845,0.00179574,4016.6,4016.5,3.02285647]
[1758987241143,0.00179574,4016.6,4016.5,1.58649]
[1758987241458,0.44967574,4016.6,4016.5,1.58649]
[1758987241843,2.64544221,4016.6,4016.5,0.7628]
[1758987242044,1.20732,4016.3,4016.2,1.21073]
[1758987242249,0.7594,4016.3,4016.2,1.46273]
[1758987242760,0.4246,4016.3,4016.2,1.46273]
[1758987242948,0.87251,4016.3,4016.2,1.46273]
[1758987243849,1.20731,4016.3,4016.2,1.46273]
[1758987244947,0.00179574,4016.6,4016.5,1.33449]
[1758987245253,0.50749174,4016.6,4016.5,1.58649]
[1758987245640,0.71289174,4016.6,4016.5,1.58649]
[1758987246249,1.16077174,4016.6,4016.5,1.58649]
[1758987247142,1.49557174,4016.6,4016.5,1.1386]
[1758987247453,1.71477174,4016.6,4016.5,1.58649]
[1758987249854,0.50749174,4016.6,4016.5,3.02285647]
[1758987250051,0.00179574,4016.6,4016.5,3.02285647]
[1758987250354,0.3203,4017.7,4017.5,0.44778]
[1758987250649,1.6901,4017.7,4017.6,1.18167]
[1758987250955,2.19610492,4017.7,4017.6,1.18167]
[1758987251348,2.19912834,4017.7,4017.6,1.18390049]
[1758987251747,2.42678834,4017.7,4017.6,1.18390049]
[1758987252053,2.64688148,4017.7,4017.6,1.18390049]
[1758987252453,2.42678148,4017.7,4017.6,1.18390049]
[1758987252962,2.64688148,4017.7,4017.6,1.18390049]
[1758987254558,2.64688148,4017.7,4017.6,0.73613049]
[1758987254855,3.17268148,4017.7,4017.6,0.25423049]
[1758987255051,9.73268148,4017.7,4017.6,0.25423049]
[1758987255258,9.73268148,4017.7,4017.6,0.78043049]
[1758987255448,6.68904795,4017.7,4017.6,0.78043049]
[1758987255855,4.48462148,4017.7,4017.6,1.43590049]
[1758987256358,4.93238148,4017.7,4017.6,1.43590049]
[1758987256655,5.25268148,4017.7,4017.6,0.00223049]
[1758987256850,6.68904795,4017.7,4017.6,0.00223049]
[1758987257658,6.68904795,4017.7,4017.6,0.45000049]
[1758987258252,4.80492148,4017.7,4017.6,0.45000049]
[1758987258451,4.80492148,4017.7,4017.6,0.77170049]
[1758987258657,5.25268148,4017.7,4017.6,0.77170049]
[1758987259465,4.80492148,4017.7,4017.6,1.18390049]
[1758987259663,0.72912148,4017.7,4017.6,1.43590049]
[1758987260158,0.00302342,4017.7,4017.6,1.43590049]
[1758987264758,0.98965,4018.7,4018.6,1.20526]
[1758987265064,1.71705187,4018.7,4018.6,1.45726]
[1758987265752,1.72027998,4018.7,4018.6,1.45726]
[1758987266766,1.21218,4018.4,4018.3,0.5418]
[1758987267062,1.21218,4018.4,4018.3,1.24149]
[1758987267662,0.7645,4018.4,4018.3,1.45729]
[1758987267961,1.21537811,4018.7,4018.6,0.7576]
[1758987268149,1.71993425,4018.7,4018.6,1.0096]
[1758987268463,1.21537811,4018.7,4018.6,1.45726]
[1758987268854,0.76772811,4018.7,4018.6,1.45726]
[1758987269068,1.21537811,4018.7,4018.6,1.45726]
[1758987269359,0.21532811,4018.7,4018.6,1.45726]
[1758987270063,0.21532811,4018.7,4018.6,2.89362647]
[1758987270564,0.00322811,4018.7,4018.6,2.89362647]
[1758987271358,0.00322811,4018.7,4018.6,7.89362647]
[1758987271558,4.41988,4019.3,4019.2,1.20519]
[1758987271755,4.41988,4019.3,4019.2,0.2055]
[1758987271959,0.7645,4018.8,4018.7,0.98945]
[1758987272161,0.7645,4018.8,4018.7,1.09745]
[1758987272359,0.7645,4018.8,4018.7,1.31325]
[1758987272560,0.76627175,4018.8,4018.7,1.31325]
[1758987274471,1.21391175,4018.8,4018.7,1.31325]
[1758987274866,1.21391175,4018.8,4018.7,1.20525]
[1758987275075,1.21391175,4018.8,4018.7,1.45725]
[1758987275365,1.21391175,4018.8,4018.7,1.0096]
[1758987275674,1.21391175,4018.8,4018.7,1.45725]
[1758987277166,1.21391175,4018.8,4018.7,0.5418]
[1758987278362,1.21391175,4018.8,4018.4,1.43636647]
[1758987278363,1.21217,4018.5,4018.4,1.97816647]
[1758987278561,1.21217,4018.5,4018.4,2.23016647]
[1758987278767,0.88229,4018.3,4018.2,3.4133]
[1758987278967,1.21219,4018.3,4018.2,4.4493]
[1758987279670,1.21219,4018.3,4018.2,3.7496]
[1758987279873,1.21219,4018.3,4018.2,4.0016]
[1758987281067,1.21219,4018.3,4018.2,3.2078]
[1758987281272,1.21219,4018.3,4018.2,3.6653]
[1758987281474,1.21219,4018.3,4018.2,3.2078]
[1758987281875,1.21219,4018.3,4018.2,3.7496]
[1758987282878,1.71715852,4018.3,4018.2,0.5418]
[1758987283766,0.50496852,4018.3,4018.2,1.4573]
[1758987283965,0.66151175,4018.8,4018.7,0.7576]
[1758987284170,0.88227,4018.5,4018.4,0.7576]
[1758987284374,1.21217,4018.5,4018.4,1.0096]
[1758987284977,1.21217,4018.5,4018.4,1.20528]
[1758987285169,1.21217,4018.5,4018.4,1.45728]
[1758987285372,1.21217,4018.5,4018.0,0.1337]
[1758987285373,0.44772,4018.0,4017.9,0.3363]
[1758987285673,1.21222,4018.0,4017.9,1.24154]
[1758987286479,1.21222,4018.0,4017.9,0.7938]
[1758987287573,1.21222,4018.0,4017.9,0.4575]
[1758987287773,1.33532,4018.0,4017.9,0.7938]
[1758987288182,1.71785016,4018.0,4017.9,0.7938]
[1758987288480,1.71785016,4018.0,4017.9,1.24154]
[1758987288980,1.71785016,4018.0,4017.9,0.98954]
[1758987289382,1.27013016,4018.0,4017.9,1.20534]
[1758987289680,0.94023016,4018.0,4017.9,1.20534]
[1758987290182,0.71773016,4018.0,4017.9,1.20534]
[1758987292776,1.16546016,4018.0,4017.9,1.20534]
[1758987292977,1.69416016,4018.0,4017.9,1.20534]
[1758987293471,1.69416016,4018.0,4017.9,0.5418]
[1758987293875,1.69416016,4018.0,4017.9,1.24154]
[1758987295884,1.69416016,4018.0,4017.9,0.5418]
[1758987296089,1.69416016,4018.0,4017.9,0.98954]
[1758987296786,1.69416016,4018.0,4017.9,0.5418]
[1758987297087,1.69416016,4018.0,4017.9,1.19574]
[1758987297589,0.7408,4018.0,4017.9,1.19574]
[1758987297982,1.18852,4018.0,4017.9,1.19574]
[1758987298487,0.2121,4018.0,4017.9,1.19574]
[1758987298684,3.2078,4018.5,4018.4,0.86508]
[1758987298988,0.44762,4019.0,4018.4,0.86508]
[1758987298989,0.44763,4018.9,4018.7,1.20245]
[1758987299283,0.7238157,4018.8,4018.7,1.45445]
[1758987300181,0.5074157,4018.8,4018.7,1.45445]
[1758987300386,0.00177175,4018.8,4018.7,3.24210371]
[1758987300591,0.00177175,4018.8,4018.7,11.44990371]
[1758987302007,3.2078,4020.1,4020.0,0.1276]
[1758987302189,4.45837479,4020.1,4020.0,0.8824]
[1758987302487,4.81837479,4020.1,4020.0,0.5486]
[1758987302693,0.4362,4019.8,4019.4,3.2078]
[1758987302987,0.5631,4019.5,4019.0,0.44761]
[1758987303178,0.5631,4019.5,4018.9,0.2112]
[1758987303179,0.872,4019.0,4018.9,0.2112]
[1758987303381,1.37747479,4019.0,4018.9,0.2112]
[1758987303582,1.37747479,4019.0,4018.9,0.5486]
[1758987305084,0.5287,4018.9,4018.8,1.20243]
[1758987305291,0.94167479,4018.9,4018.8,1.20243]
[1758987305587,0.2164,4018.9,4018.8,1.20243]
[1758987305787,0.7451,4019.2,4019.1,0.865]
[1758987305992,1.25053528,4019.2,4019.1,1.2024]
[1758987306899,0.94163528,4019.2,4019.1,1.2024]
[1758987307091,0.72183528,4019.2,4019.1,1.2024]
[1758987308094,1.25053528,4019.2,4019.1,1.2024]
[1758987309694,1.25053528,4019.2,4019.1,1.4544]
[1758987313599,1.69812528,4019.2,4019.1,0.8006]
[1758987313801,1.69812528,4019.2,4019.1,0.6996]
[1758987313999,1.69812528,4019.2,4019.1,0.4476]
[1758987317103,1.69812528,4019.2,4019.1,0.7579]
[1758987317302,1.25053528,4019.2,4019.1,0.7579]
[1758987317502,1.69812528,4019.2,4019.1,0.7579]
[1758987318702,1.69812528,4019.2,4019.1,0.9745]
[1758987322404,0.50543528,4019.2,4018.9,3.2078]
[1758987322607,0.87734,4018.9,4018.8,0.44763]
[1758987322905,11.34027528,4018.9,4018.8,0.44763]
[1758987323607,1.20165,4018.8,4018.7,0.78085]
[1758987323812,1.70708528,4018.8,4018.7,0.78085]
[1758987324201,0.90307,4018.5,4018.4,3.2078]
[1758987324406,10.56910528,4018.5,4018.4,3.2078]
[1758987326412,1.20171,4018.1,4018.0,0.69972]
[1758987326605,1.70714528,4018.1,4018.0,1.03292]
[1758987327110,1.25943528,4018.1,4018.0,1.25592]
[1758987328009,1.25943528,4018.1,4018.0,1.00392]
[1758987328208,1.25943528,4018.1,4018.0,1.48212]
[1758987328410,1.70714528,4018.1,4018.0,1.48212]
[1758987329412,0.87836,4017.7,4017.6,0.33543049]
[1758987329604,1.70719528,4017.7,4017.6,0.33543049]
[1758987330104,1.70719528,4017.7,4017.6,0.00223049]
[1758987331008,11.26719528,4017.7,4017.6,0.00223049]
[1758987332808,1.70719528,4017.7,4017.6,0.78463049]
[1758987336605,1.70719528,4017.7,4017.6,0.55843049]
[1758987336807,1.70719528,4017.7,4017.6,1.00620049]
[1758987337207,1.70719528,4017.7,4017.6,0.55843049]
[1758987337717,1.70719528,4017.7,4017.6,1.00620049]
[1758987338815,1.70719528,4017.7,4017.6,0.55843049]
[1758987341820,1.20184,4017.0,4016.9,3.87865]
[1758987342023,0.754,4017.0,4016.9,4.43805]
[1758987342625,1.20184,4017.0,4016.9,4.43805]
[1758987342825,0.754,4017.0,4016.9,4.44126429]
[1758987343817,0.4306,4017.0,4016.9,4.44126429]
[1758987344123,0.87844,4017.0,4016.9,4.44126429]
[1758987345626,0.44784,4017.0,4016.9,4.44126429]
[1758987345820,0.44783,4017.1,4017.0,1.36232]
[1758987347029,0.44783,4017.1,4017.0,1.61432]
[1758987349122,0.67383,4017.1,4017.0,1.61432]
[1758987350423,0.67383,4017.1,4017.0,1.36232]
[1758987350729,0.67383,4017.1,4017.0,1.61432]
[1758987351027,0.226,4017.3,4017.0,1.81963196]
[1758987351221,0.44779,4017.5,4017.4,1.23018]
[1758987351621,0.50493892,4017.5,4017.4,1.23018]
[1758987352128,0.50493892,4017.5,4017.4,4.43798]
[1758987352328,0.44777,4017.6,4017.5,1.36228]
[1758987352629,0.95290331,4017.6,4017.5,1.36228]
[1758987352929,1.17890331,4017.6,4017.5,1.36228]
[1758987355827,1.17890331,4017.6,4016.9,3.21101429]
[1758987355828,0.44784,4017.0,4016.9,3.21101429]
[1758987356034,3.27500527,4017.0,4016.9,0.00321429]
[1758987356231,12.94500527,4017.0,4016.9,0.00321429]
[1758987356429,13.19700527,4017.0,4016.9,0.00321429]
[1758987356731,14.63253723,4017.0,4016.9,0.00321429]
[1758987357134,14.63253723,4017.0,4016.0,0.7405]
[1758987357135,1.20214,4016.1,4016.0,0.7405]
[1758987357335,2.63767196,4016.1,4016.0,0.9925]
[1758987358127,2.64071006,4016.1,4016.0,0.99449882]
[1758987358732,1.2051781,4016.1,4016.0,0.99449882]
[1758987358926,1.2051781,4016.1,4016.0,1.44244882]
[1758987359126,1.2051781,4016.1,4016.0,0.99449882]
[1758987359325,1.2051781,4016.1,4016.0,1.44244882]
[1758987359635,1.71115268,4016.1,4016.0,1.44244882]
[1758987360139,0.0030381,4016.1,4016.0,8.00648078]
[1758987360427,0.2231,4016.9,4016.8,1.18836]
[1758987360632,1.20205,4016.9,4016.5,0.1285]
[1758987360830,0.4479,4016.4,4016.3,3.7408]
[1758987361034,0.4479,4016.4,4016.3,4.39622]
[1758987361035,1.26009818,4016.4,4016.3,4.39622]
[1758987361229,0.00248416,4016.4,4016.3,4.39622]
[1758987370842,0.21928416,4016.4,4016.3,4.64822]
[1758987371040,0.00248416,4016.4,4016.3,4.64822]
[1758987375251,0.00248416,4016.4,4016.3,6.08375196]
[1758987379755,0.66461,4017.3,4017.2,1.19981]
[1758987379955,1.17043326,4017.3,4017.2,1.19981]
[1758987380158,0.72262326,4017.3,4017.2,1.19981]
[1758987380657,0.50846881,4017.3,4017.2,2.63534196]
[1758987381451,1.06316881,4017.3,4017.2,0.752]
[1758987381652,1.27976881,4017.3,4017.2,1.004]
[1758987382255,1.72756881,4017.3,4017.2,1.45181]
[1758987384358,1.27976881,4017.3,4017.2,1.45181]
[1758987384555,0.72526881,4017.3,4017.2,1.45181]
[1758987386256,1.06606881,4017.3,4017.2,1.45181]
[1758987387161,0.72526881,4017.3,4017.2,1.45181]
[1758987389865,0.50846881,4017.3,4017.2,2.88734196]
[1758987391661,0.00264555,4017.3,4017.2,2.88734196]
[1758987402673,0.00264555,4017.3,4017.2,1.45181]
[1758987406174,0.21064555,4017.3,4017.2,1.45181]
[1758987407375,0.21064555,4017.3,4016.9,1.1196]
[1758987407376,1.01524,4017.0,4016.9,0.5451]
[1758987407572,1.09284,4016.1,4016.0,0.00199882]
[1758987407778,0.6449,4015.5,4015.4,0.324]
[1758987407976,10.28850043,4015.5,4015.4,0.324]
[1758987408674,10.28850043,4015.5,4015.4,0.32610903]
[1758987408979,1.09296,4015.0,4014.9,0.2211]
[1758987409176,12.33114345,4015.0,4014.9,0.5451]
[1758987409374,10.54296,4015.0,4014.9,0.5451]
[1758987409878,10.54296,4015.0,4014.9,0.54716666]
[1758987410083,10.0949,4015.0,4014.9,0.54716666]
[1758987410775,3.6424,4015.6,4015.5,0.8928]
[1758987411076,0.208,4015.6,4015.5,0.8928]
[1758987411377,0.208,4016.0,4015.9,0.7597]
[1758987414871,3.2078,4016.2,4016.1,0.4341]
[1758987415077,5.1206,4016.2,4016.1,0.7523]
[1758987415683,1.69,4016.2,4016.1,0.7523]
[1758987418885,1.69,4016.2,4016.1,1.20024]
[1758987420480,0.4386,4016.8,4016.7,1.20017]
[1758987420777,0.67063,4017.1,4017.0,0.8866]
[1758987420972,3.90643,4017.1,4017.0,1.33444]
[1758987422378,3.4586,4017.1,4017.0,1.33444]
[1758987422678,3.2428,4017.1,4017.0,1.33444]
[1758987422983,3.42624555,4017.3,4017.2,0.67001]
[1758987423182,5.29904555,4017.3,4017.2,0.98821]
[1758987424376,1.65264555,4017.3,4017.2,1.20011]
[1758987425278,0.00264555,4017.3,4017.2,1.20011]
[1758987428177,0.44124555,4017.3,4017.2,1.20011]
[1758987428483,0.65044555,4017.3,4017.2,1.45211]
[1758987428673,0.44124555,4017.3,4017.2,1.45211]
[1758987428877,0.00264555,4017.3,4017.2,1.45211]
[1758987429383,0.00264555,4017.3,4017.2,1.20011]
[1758987429578,0.00264555,4017.3,4017.2,1.45211]
[1758987431783,0.00264555,4017.3,4017.2,3.24029345]
[1758987435583,0.62904555,4017.3,4017.2,1.24021]
[1758987435790,0.62904555,4017.3,4017.2,1.01801]
[1758987435982,0.41984555,4017.3,4017.2,1.45831]
[1758987436290,0.00264555,4017.3,4017.2,1.45831]
[1758987436880,0.2092,4018.5,4018.2,0.4403]
[1758987437184,0.65298,4018.4,4018.3,0.88799]
[1758987437582,0.65298,4018.4,4018.3,1.21489]
[1758987437783,0.2053,4018.4,4018.3,1.21489]
[1758987438086,0.20754071,4018.4,4018.3,1.21666974]
[1758987438689,0.20754071,4018.4,4018.3,1.02097974]
[1758987438690,0.86712071,4018.4,4018.3,1.02097974]
[1758987438884,0.86712071,4018.4,4018.3,1.46866974]
[1758987439283,0.41944071,4018.4,4018.3,1.46866974]
[1758987439893,0.20754071,4018.4,4018.3,1.46866974]
[1758987442180,0.00224071,4018.4,4018.3,1.46866974]
[1758987443192,0.22054071,4018.4,4018.3,1.46866974]
[1758987443587,9.55382071,4018.4,4018.3,0.00177974]
[1758987443894,15.06429479,4018.4,4018.3,0.00177974]
[1758987446596,15.06429479,4018.4,4018.3,0.31387974]
[1758987447494,14.85519479,4018.4,4018.3,0.53727974]
[1758987447700,1.17869479,4018.4,4018.3,0.75607974]
[1758987448991,1.59429479,4018.4,4018.3,0.31387974]
[1758987449197,16.43429479,4018.4,4018.3,0.00177974]
[1758987449388,6.31519479,4018.4,4018.3,0.53727974]
[1758987450291,6.52429479,4018.4,4018.3,0.53727974]
[1758987452797,5.89039479,4018.4,4018.3,0.75607974]
[1758987452999,5.89039479,4018.4,4018.3,1.20376974]
[1758987453598,0.96039479,4018.4,4018.3,1.20376974]
[1758987453801,0.51271479,4018.4,4018.3,1.20376974]
[1758987455099,1.59429479,4018.4,4018.3,0.53727974]
[1758987455293,0.93751479,4018.4,4018.3,0.75607974]
[1758987455602,0.93751479,4018.4,4018.3,1.20376974]
[1758987456106,1.38519479,4018.4,4018.3,1.20376974]
[1758987457601,0.93751479,4018.4,4018.3,1.20376974]
[1758987457796,8.00429479,4018.4,4018.3,0.00177974]
[1758987458298,8.25629479,4018.4,4018.3,0.00177974]
[1758987458617,8.25629479,4018.4,4018.3,0.31387974]
[1758987459302,8.25629479,4018.4,4018.3,0.76156974]
[1758987459497,2.87629479,4018.4,4018.3,0.53727974]
[1758987461605,1.38519479,4018.4,4018.3,0.75607974]
[1758987463200,1.38519479,4018.4,4018.3,1.20376974]
[1758987463401,1.38738464,4018.4,4018.3,1.20376974]
[1758987466099,0.51490464,4018.4,4018.3,1.20376974]
[1758987466702,0.96258464,4018.4,4018.3,1.20376974]
[1758987467701,0.96258464,4018.4,4018.3,0.75607974]
[1758987468099,1.18088464,4018.4,4018.3,0.75607974]
[1758987468709,1.18088464,4018.4,4018.3,1.20376974]
[1758987470402,1.38738464,4018.4,4018.3,0.75607974]
[1758987470605,1.59648464,4018.4,4018.3,0.53727974]
[1758987471506,9.81648464,4018.4,4018.3,0.00177974]
[1758987472099,9.81648464,4018.4,4018.3,0.53727974]
[1758987472302,11.25105579,4018.4,4018.3,0.00177974]
[1758987472500,16.25105579,4018.4,4018.3,0.00177974]
[1758987477105,11.25105579,4018.4,4018.3,0.51737974]
[1758987477304,6.08075579,4018.4,4018.3,0.51737974]
[1758987477502,6.08075579,4018.4,4018.3,0.31267974]
[1758987479008,6.08075579,4018.4,4018.3,0.00177974]
[1758987480516,0.2088,4017.7,4017.6,3.2078]
[1758987480819,3.02189508,4017.7,4017.6,3.2078]
[1758987481014,3.02189508,4017.7,4017.6,3.5187]
[1758987481514,3.02189508,4017.7,4017.6,3.5219256]
[1758987482103,3.27389508,4017.7,4017.6,3.2110256]
[1758987482309,11.51389508,4017.7,4017.6,0.0032256]
[1758987484219,0.86591,4017.2,4017.1,0.3109]
[1758987484420,1.58737393,4017.2,4017.1,0.3109]
[1758987485115,1.58737393,4017.2,4017.1,0.75873]
[1758987485318,1.58737393,4017.2,4017.1,0.96527388]
[1758987485520,1.58737393,4017.2,4017.1,0.51744388]
[1758987488219,1.58737393,4017.2,4017.1,0.96527388]
[1758987489634,1.58737393,4017.2,4017.1,0.51744388]
[1758987490117,1.58737393,4017.2,4017.1,0.31274388]
[1758987491910,1.58737393,4017.2,4017.1,0.51714388]
[1758987492122,1.37857393,4017.2,4017.1,0.51714388]
[1758987492723,1.58767393,4017.2,4017.1,0.51714388]
[1758987493820,1.37857393,4017.2,4017.1,0.51714388]
[1758987494920,1.58767393,4017.2,4017.1,0.51714388]
[1758987496930,1.58767393,4017.2,4017.1,0.96497388]
[1758987498720,0.51266393,4017.2,4017.1,1.17267388]
[1758987498922,0.76466393,4017.2,4017.1,1.17267388]
[1758987499232,1.85697393,4017.2,4017.1,0.72484388]
[1758987499525,1.64787393,4017.2,4017.1,0.72484388]
[1758987500227,1.64787393,4017.2,4017.1,1.17267388]
[1758987501029,1.64787393,4017.2,4017.1,0.72484388]
[1758987501221,1.85697393,4017.2,4017.1,0.72484388]
[1758987501926,1.85697393,4017.2,4017.1,0.00184388]
[1758987502324,1.85697393,4017.2,4017.1,0.33234388]
[1758987502922,10.72697393,4017.2,4017.1,0.00184388]
[1758987503230,1.08121,4016.3,4016.2,0.76253]
[1758987503530,0.4242,4016.3,4016.2,1.19483]
[1758987503927,0.205,4016.3,4016.2,1.19483]
[1758987504128,0.205,4016.3,4016.2,1.19709427]
[1758987505116,0.87211,4016.3,4016.2,1.19709427]
[1758987505529,1.38380304,4016.3,4016.2,1.19709427]
[1758987505827,1.59290304,4016.3,4016.2,0.31686427]
[1758987506028,3.02747419,4016.3,4016.2,0.31686427]
[1758987507223,15.42527419,4016.3,4016.2,0.31686427]
[1758987509028,13.33369304,4016.3,4016.2,0.74916427]
[1758987509226,0.51169304,4016.3,4016.2,7.63166542]
[1758987512823,2.81837419,4016.3,4016.2,0.53186427]
[1758987513025,3.02747419,4016.3,4016.2,0.78386427]
[1758987513226,2.81837419,4016.3,4016.2,0.78386427]
[1758987513525,2.81837419,4016.3,4016.2,1.00116427]
[1758987514924,3.02747419,4016.3,4016.2,0.78386427]
[1758987515232,3.02747419,4016.3,4016.2,0.31686427]
[1758987515423,8.12947419,4016.3,4016.2,0.00226427]
[1758987516427,11.33727419,4016.3,4016.2,0.00226427]
[1758987517131,16.56727419,4016.3,4016.2,0.00226427]
[1758987519929,1.16460304,4016.3,4016.2,0.74916427]
[1758987523141,1.16460304,4016.3,4016.2,1.19709427]
[1758987523942,1.59290304,4016.3,4016.2,0.31686427]
[1758987524141,13.77270304,4016.3,4016.2,0.00226427]
[1758987524536,15.56279325,4016.3,4016.2,0.00226427]
[1758987525530,0.4242,4015.9,4015.5,0.1226]
[1758987525847,1.08128,4015.7,4015.6,0.3146]
[1758987526039,1.59297304,4015.7,4015.6,0.5296]
[1758987526741,11.36297304,4015.7,4015.6,0.31661043]
[1758987527141,5.03297304,4015.7,4015.6,0.31661043]
[1758987527445,5.03297304,4015.7,4015.6,0.53161043]
[1758987530650,4.82387304,4015.7,4015.6,0.21701043]
[1758987530852,4.82387304,4015.7,4015.6,0.53161043]
[1758987531043,4.82387304,4015.7,4015.6,0.74891043]
[1758987534747,5.03327304,4015.7,4015.6,0.53161043]
[1758987535044,5.03327304,4015.7,4015.6,0.00201043]
[1758987535248,5.03327304,4015.7,4015.6,0.30881043]
[1758987535448,6.82336325,4015.7,4015.6,0.53171043]
[1758987536143,6.61396325,4015.7,4015.6,0.53171043]
[1758987536344,6.61396325,4015.7,4015.6,0.74141043]
[1758987536847,6.82336325,4015.7,4015.6,0.74141043]
[1758987538041,3.42175325,4015.7,4015.0,3.2078]
[1758987538254,3.42175325,4015.7,4014.0,0.17800153]
[1758987538255,0.44815,4014.2,4014.0,1.34492638]
[1758987538452,0.4482,4013.7,4013.5,0.1315]
[1758987538645,0.76431681,4013.6,4013.5,0.1315]
[1758987538949,3.78431681,4013.6,4013.5,0.3544]
[1758987539166,3.78707176,4013.6,4013.5,0.35689965]
[1758987539655,3.78707176,4013.6,4013.5,0.56659965]
[1758987540149,3.78707176,4013.6,4013.5,0.87339965]
[1758987541240,3.81506032,4013.6,4013.5,0.87339965]
[1758987543352,3.56306032,4013.6,4013.5,0.87339965]
[1758987543554,0.00275495,4013.6,4013.5,0.87339965]
[1758987546660,0.00275495,4013.6,4013.5,9.08119965]
[1758987547771,0.00275495,4013.6,4013.5,10.87128986]
[1758987549365,0.00275495,4013.6,4013.5,11.31951986]
[1758987550359,0.00275495,4013.6,4013.5,4.52942965]
[1758987550566,0.00275495,4013.6,4013.5,4.78142965]
[1758987551263,0.45097495,4013.6,4013.5,4.33319965]
[1758987551463,0.45097495,4013.6,4013.5,4.78142965]
[1758987551659,0.00275495,4013.6,4013.5,4.78142965]
[1758987557968,0.00275495,4013.6,4013.5,4.52942965]
[1758987558182,0.00275495,4013.6,4013.5,4.78142965]
[1758987567373,0.54456809,4013.6,4013.5,4.78142965]
[1758987569871,0.54456809,4013.6,4013.5,6.57151986]
[1758987574674,0.44811,4014.7,4014.6,1.2059]
[1758987574881,3.36811,4014.7,4014.6,1.2059]
[1758987575684,3.37043394,4014.7,4014.6,0.7578]
[1758987575972,9.06043394,4014.7,4014.6,0.5407]
[1758987576173,14.06043394,4014.7,4014.6,0.3306]
[1758987579582,9.06043394,4014.7,4014.6,0.3306]
[1758987580484,9.06043394,4014.7,4014.6,0.5407]
[1758987581683,4.39043394,4014.7,4014.6,1.2059]
[1758987582684,3.94232394,4014.7,4014.6,1.2059]
[1758987583789,4.39041394,4014.7,4014.6,1.2059]
[1758987584790,5.82771425,4014.7,4014.6,1.2059]
[1758987585192,5.82771425,4014.7,4014.6,0.7578]
[1758987585693,5.82771425,4014.7,4014.6,1.2059]
[1758987588800,5.82771425,4014.7,4014.6,0.7578]
[1758987589898,5.82771425,4014.7,4014.6,1.2059]
[1758987590096,1.43962425,4014.7,4014.6,1.2059]
[1758987590294,0.00232394,4014.7,4014.6,1.87755736]
[1758987590497,0.00232394,4014.7,4014.6,1.2059]
[1758987592391,0.00232394,4014.7,4014.6,1.87714699]
[1758987593194,0.45041394,4014.7,4014.6,1.87714699]